Workbook

Sheet 附件1
A1: 附件1
A2: 蓬江区2024一般公共预算调整情况表
H3: 单位：万元
A4: 收 入 | E4: 支 出
A5: 项目 | B5: 年初预算数 | C5: 调整额 | D5: 调整后预算数 | E5: 项目 | F5: 年初预算数 | G5: 调整额 | H5: 调整后预算数 | J5: 支出调整额说明：
A6: 一、一般公共预算收入 | B6: 311,846 | C6: =D6-B6 -> -6,704 | D6: 305,142 | E6: 一、一般公共预算支出 | F6: 502,035 | G6: =H6-F6 -> -120,891 | H6: =381138+6 -> 381,144 | J6: 11.22测算：上级财力性补助市本级增加1.345亿-（专项+全市统筹）第一批压减3.59-市本级待分配资金（专项+全市统筹）第二批压减0.2997亿-一般预算调入第一批压减(7.0015亿-中创新航2.5亿)-一般预算调入第二批压减（2.1261亿-中创新航1.5亿）=-7.6723亿元+成品油补助市本级增加2.5588亿=-5.1135亿+差额调平3.1879亿=-1.9256亿元 （11.21与国库核：今年保持76亿左右支出规模
A7: 税收收入 | B7: 202,555 | C7: =D7-B7 -> -14,271 | D7: 188,284
A8: 非税收入 | B8: 109,291 | C8: =D8-B8 -> 7,567 | D8: 116,858
A9: 二、上年结转收入 | B9: 155 | C9: =D9-B9 -> 5,966 | D9: 6,121 | E9: 二、转移性支出 | F9: =F10+F11 -> 58,801 | G9: =H9-F9 -> 28,092 | H9: =H10+H11 -> 86,893
A10: 三、转移性收入 | B10: =B11+B15 -> 95,835 | C10: 42,939 | D10: =SUM(D11,D15) -> 138,774 | E10: （一）上解上级支出 | F10: 58,801 | G10: 28,092 | H10: 86,893
A11: （一）上级补助收入 | B11: =SUM(B12:B14) -> 95,835 | C11: 42,939 | D11: =SUM(D12:D14) -> 138,774 | E11: （二）补助下级支出 | G11: 0 | J11: -市补助下级（专项+全市统筹）第一批压减（未能拆分，包含在上述3.59亿）-市补助下级（专项+全市统筹）第二批压减0.5982亿-一般预算调入补助下级第一批压减2.5亿（中创新航）-一般预算调入补助下级第二批压减1.5亿（中创新航）-1.2793亿元（全市统筹发展资金上解减少1.2793亿元相应减少补助下级）=-5.8775亿元+1.3（开平1亿，恩平0.3亿）=-4.5775亿
A12: 返还性收入 | B12: 25,233 | C12: 0 | D12: 25,233 | E12: 三、债务转贷支出 | F12: =F13+F14 -> 0 | G12: 0 | H12: =H13+H14 -> 0
A13: 一般性转移支付收入 | B13: 70,181 | C13: 10,965 | D13: 81,146 | E13: （一）再融资债券支出
A14: 专项转移支付收入 | B14: 421 | C14: 31,974 | D14: 32,395 | E14: （二）一般债券支出
A15: （二）下级上解收入 | C15: 0 | E15: 四、债务还本支出 | F15: 1,995 | G15: 25,000 | H15: 26,995
A16: 四、债务转贷收入 | B16: =B17+B18 -> 1,995 | C16: 25,000 | D16: =D17+D18 -> 26,995 | E16: 五、结转下年支出 | G16: 0
A17: （一）再融资债券收入 | B17: 1,995 | C17: 25,000 | D17: 26,995
A18: （二）一般债券收入 | B18: 0 | C18: 0 | D18: 0
A19: 五、调入资金 | B19: =SUM(B20:B23) -> 153,000 | C19: -135,000 | D19: =SUM(D20:D23) -> 18,000
A20: （一）调入政府性基金预算资金 | B20: 148,000 | C20: -135,000 | D20: 13,000
A21: （二）调入国有资本预算资金 | B21: 5,000 | C21: 0 | D21: 5,000
A22: （三）调入其他资金 | B22: 0 | C22: 0 | D22: 0
A23: （四）调入预算稳定调节金 | B23: 0 | C23: 0 | D23: 0
A25: 收入总计 | B25: =B6+B9+B10+B16+B19+B24 -> 562,831 | C25: =D25-B25 -> -67,799 | D25: =SUM(D6,D9,D10,D16,D19) -> 495,032 | E25: 支出总计 | F25: =F6+F9+F12+F15+F16 -> 562,831 | G25: =H25-F25 -> -67,799 | H25: =SUM(H6,H9,H12,H15,H16) -> 495,032
